bitfinex/quotes_SOLUSD_20250714
["timestamp","ask_amount","ask_price","bid_price","bid_amount"]
[1752463532418,1.56,166.0,165.99,74.47684554]
[1752463532619,1.56,166.0,165.99,79.1813539]
[1752463533136,1.56,166.0,165.99,79.8613539]
[1752463533635,1.56,166.0,165.99,169.4613539]
[1752463536524,1.56,166.0,165.99,164.07684554]
[1752463536734,1.56,166.0,165.99,169.4613539]
[1752463537513,1.56,166.0,165.99,164.75684554]
[1752463537841,1.56,166.0,165.99,169.4613539]
[1752463538144,2.25,166.0,165.99,164.07684554]
[1752463538317,2.25,166.0,165.99,74.47684554]
[1752463539153,1.56,166.0,165.99,79.8613539]
[1752463540751,0.06,166.05,166.0,16.92684554]
[1752463540923,11.08285106,166.07,166.06,0.14216157]
[1752463541123,11.08285106,166.07,166.06,40.19636952]
[1752463541333,11.08285106,166.07,166.06,56.30105349]
[1752463542523,11.08285106,166.07,166.06,56.98105349]
[1752463543044,11.08285106,166.07,166.06,56.30105349]
[1752463544238,11.08285106,166.07,166.06,56.98105349]
[1752463544438,11.08285106,166.07,166.06,56.96105349]
[1752463546136,11.08285106,166.07,166.06,56.28105349]
[1752463546945,11.08285106,166.07,166.06,146.56105349]
[1752463547132,11.08285106,166.07,166.06,164.63105349]
[1752463547433,0.69,166.16,166.09,16.78468397]
[1752463547633,7.81420795,166.15,166.1,39.35420795]
[1752463547849,8.50420795,166.14,166.11,16.78468397]
[1752463548021,8.50420795,166.14,166.12,31.54]
[1752463548022,7.81420795,166.14,166.12,31.54]
[1752463548227,0.69,166.13,166.12,31.54]
[1752463548773,8.50420795,166.13,166.12,31.54]
[1752463548929,2.2445,166.13,166.12,31.54]
[1752463549139,10.05870795,166.13,166.12,31.54]
[1752463549655,0.69,166.13,166.12,39.35420795]
[1752463549854,0.69,166.13,166.12,31.54]
[1752463550726,0.69,166.2,166.14,0.14216157]
[1752463551056,0.69,166.19,166.16,16.78468397]
[1752463551229,0.69,166.18,166.17,57.5]
[1752463552026,0.69,166.18,166.17,74.28468397]
[1752463552433,0.69,166.18,166.17,57.5]
[1752463560059,8.50420795,166.18,166.17,57.5]
[1752463560444,14.59010795,166.18,166.17,57.5]
[1752463560949,11.4636062,166.18,166.17,57.5]
[1752463563653,6.7759,166.18,166.17,57.5]
[1752463564163,0.69,166.18,166.17,57.5]
[1752463564345,5.3777062,166.18,166.17,57.5]
[1752463565258,0.69,166.18,166.17,57.5]
[1752463565569,5.3777062,166.18,166.17,57.5]
[1752463567357,0.69,166.18,166.17,57.5]
[1752463567550,5.3777062,166.18,166.17,57.5]
[1752463567866,0.69,166.18,166.17,57.5]
[1752463568455,5.3777062,166.18,166.17,57.5]
[1752463570249,0.69,166.18,166.17,57.5]
[1752463570451,5.3777062,166.18,166.17,57.5]
[1752463573263,0.69,166.18,166.17,57.5]
[1752463573471,5.3777062,166.18,166.17,57.5]
[1752463574556,0.69,166.18,166.17,57.5]
[1752463574775,5.3777062,166.18,166.17,57.5]
[1752463576480,0.69,166.18,166.17,57.5]
[1752463576679,5.3777062,166.18,166.17,57.5]
[1752463578558,0.69,166.18,166.17,57.5]
[1752463578758,5.3777062,166.18,166.17,57.5]
[1752463583687,18.0101124,166.18,166.07,0.66]
[1752463583893,4.6877062,166.1,166.07,0.66]
[1752463584068,4.6877062,166.13,166.08,36.1877062]
[1752463584393,4.6877062,166.09,166.08,31.5]
[1752463584758,5.4077062,166.09,166.08,31.5]
[1752463585982,4.6877062,166.09,166.08,31.5]
[1752463586781,5.4077062,166.09,166.08,31.5]
[1752463588193,10.0954124,166.09,166.07,0.03]
[1752463588380,10.87124293,166.11,166.07,0.03]
[1752463588381,10.0954124,166.08,166.07,0.03]
[1752463588581,10.0954124,166.08,166.07,31.51]
[1752463591701,4.6877062,166.08,166.07,31.51]
[1752463592914,0.66,166.1,166.07,31.51]
[1752463593091,4.6877062,166.09,166.07,31.51]
[1752463593413,4.6877062,166.08,166.07,31.51]
[1752463593607,5.3477062,166.08,166.07,31.51]
[1752463593832,10.0354124,166.08,166.07,31.51]
[1752463594904,10.0354124,166.08,166.07,31.48]
[1752463595710,10.0354124,166.08,166.07,31.51]
[1752463596014,10.0954124,166.08,166.07,31.51]
[1752463599324,4.7477062,166.08,166.07,31.51]
[1752463599622,5.4077062,166.08,166.07,31.51]
[1752463600002,4.7477062,166.08,166.07,31.51]
[1752463600202,5.4077062,166.08,166.07,31.51]
[1752463600419,4.7477062,166.08,166.07,31.51]
[1752463601590,5.4077062,166.08,166.07,31.51]
[1752463601786,10.0954124,166.08,166.07,31.51]
[1752463602802,0.72,166.08,166.07,31.51]
[1752463602995,10.0954124,166.08,166.07,31.51]
[1752463603591,0.72,166.08,166.07,31.51]
[1752463603994,5.4077062,166.08,166.07,31.51]
[1752463604196,10.0954124,166.08,166.07,31.51]
[1752463605210,4.7477062,166.08,166.07,31.51]
[1752463607800,0.06,166.08,166.07,31.51]
[1752463608199,0.06,166.08,166.07,53.64239017]
[1752463609017,0.06,166.08,166.07,48.95468397]
[1752463609516,0.06,166.08,166.07,53.64239017]
[1752463609697,0.06,166.08,166.07,53.78455174]
[1752463610893,0.06,166.08,166.07,76.50225794]
[1752463611098,0.06,166.08,166.07,60.10145794]
[1752463612611,0.06,166.08,166.07,50.72604554]
[1752463612819,0.06,166.08,166.07,55.41375174]
[1752463613008,0.06,166.08,166.07,58.53912908]
[1752463613925,0.06,166.08,166.07,27.05912908]
[1752463614226,0.06,166.08,166.07,58.51912908]
[1752463615224,0.06,166.08,166.07,148.11912908]
[1752463616819,8.47308354,166.19,166.08,16.92684554]
[1752463617024,8.47308354,166.19,166.14,7.81308354]
[1752463617227,8.47308354,166.19,166.15,31.44]
[1752463617607,8.47308354,166.19,166.15,39.91308354]
[1752463617926,6.4389,166.2,166.15,39.91308354]
[1752463618106,8.47308354,166.2,166.15,39.91308354]
[1752463618838,8.47308354,166.2,166.15,8.47308354]
[1752463619002,8.47308354,166.2,166.16,31.44]
[1752463619936,0.66,166.2,166.16,31.44]
[1752463620140,7.81308354,166.18,166.13,16.78468397]
[1752463620345,0.66,166.17,166.15,16.78468397]
[1752463620649,8.47308354,166.19,166.16,31.44]
[1752463620954,8.47308354,166.18,166.16,31.44]
[1752463621525,8.48308354,166.18,166.16,31.44]
[1752463622428,0.67,166.17,166.16,31.44]
[1752463622627,8.48308354,166.17,166.16,31.44]
[1752463623349,8.48308354,166.17,166.12,106.38468397]
[1752463623538,7.81308354,166.16,166.13,31.42]
[1752463623879,7.81308354,166.17,166.13,32.08]
[1752463624162,8.48308354,166.16,166.12,89.6]
[1752463624325,7.81308354,166.16,166.14,31.42]
[1752463624529,0.67,166.15,166.14,31.42]
[1752463625045,7.81308354,166.16,166.14,31.42]
[1752463625451,8.48308354,166.16,166.14,31.42]
[1752463626023,0.67,166.18,166.14,31.42]
[1752463626334,7.81308354,166.18,166.14,32.08]
[1752463626539,7.81308354,166.16,166.14,31.42]
[1752463626954,8.48308354,166.16,166.14,31.42]
[1752463627870,8.48308354,166.15,166.14,31.42]
[1752463628045,0.67,166.15,166.14,31.42]
[1752463628243,8.48308354,166.15,166.07,98.10308354]
[1752463628444,7.81308354,166.12,166.09,16.78468397]
[1752463628663,7.81308354,166.12,166.1,31.42]
[1752463628872,8.48308354,166.11,166.1,31.42]
[1752463630351,0.67,166.13,166.1,31.42]
[1752463630555,7.81308354,166.13,166.1,31.42]
[1752463631164,8.48308354,166.13,166.1,31.42]
[1752463632170,7.81308354,166.13,166.1,31.42]
[1752463632757,7.81308354,166.13,166.1,32.08]
[1752463633045,7.81308354,166.14,166.1,32.08]
[1752463633464,7.81308354,166.13,166.1,32.08]
[1752463633845,0.67,166.14,166.1,32.08]
[1752463634049,7.81308354,166.12,166.1,31.42]
[1752463634474,7.81308354,166.13,166.1,31.42]
[1752463635068,0.67,166.15,166.1,31.42]
[1752463635280,4.68965881,166.13,166.1,31.42]
[1752463636281,6.4912,166.18,166.1,32.08]
[1752463636480,4.68965881,166.14,166.1,32.08]
[1752463636887,0.67,166.15,166.1,32.08]
[1752463637080,4.68965881,166.13,166.1,31.42]
[1752463637283,5.35965881,166.14,166.1,32.08]
[1752463637963,4.68965881,166.14,166.11,0.66]
[1752463638261,4.68965881,166.14,166.12,31.42]
[1752463639686,6.4912,166.18,166.13,0.66]
[1752463639687,7.1612,166.18,166.13,0.66]
[1752463639870,0.67,166.17,166.14,31.42]
[1752463640074,6.4912,166.18,166.14,31.42]
[1752463640075,4.68965881,166.15,166.14,31.42]
[1752463641180,5.35965881,166.16,166.14,31.42]
[1752463641986,5.35965881,166.16,166.15,25.96]
[1752463644080,6.4912,166.18,166.15,25.96]
[1752463644081,4.68965881,166.18,166.15,25.96]
[1752463644283,5.35965881,166.16,166.15,25.96]
[1752463644491,5.35965881,166.16,166.15,57.36]
[1752463647574,5.35965881,166.16,166.15,25.96]
[1752463647788,5.35965881,166.16,166.15,57.36]
[1752463653490,0.69,166.18,166.15,57.36]
[1752463653705,5.37965881,166.16,166.15,57.36]
[1752463654079,10.06931762,166.16,166.15,57.36]
[1752463654387,10.06931762,166.16,166.15,25.96]
[1752463654591,10.06931762,166.16,166.15,57.36]
[1752463654978,5.37965881,166.16,166.15,57.36]
[1752463655489,10.06931762,166.16,166.15,57.36]
[1752463656484,10.06931762,166.16,166.15,31.4]
[1752463656687,6.0784,166.15,166.11,25.96]
[1752463656883,4.68965881,166.12,166.11,25.96]
[1752463657198,5.37965881,166.12,166.11,57.34]
[1752463659605,5.37965881,166.12,166.11,25.96]
[1752463659776,5.37965881,166.12,166.11,57.34]
[1752463661286,0.69,166.12,166.11,57.34]
[1752463661492,4.68965881,166.12,166.11,57.34]
[1752463664108,4.74965881,166.16,166.11,62.68965881]
[1752463664276,0.06,166.16,166.13,4.68965881]
[1752463664585,4.68965881,166.14,166.12,0.66]
[1752463664895,4.68965881,166.14,166.13,31.38]
[1752463665103,4.68965881,166.15,166.13,32.04]
[1752463665281,4.74965881,166.16,166.13,32.04]
[1752463665682,4.68965881,166.15,166.13,32.04]
[1752463666302,4.68965881,166.15,166.13,31.38]
[1752463666595,4.68965881,166.15,166.13,32.04]
[1752463667097,4.74965881,166.16,166.13,32.04]
[1752463667596,4.74965881,166.16,166.14,0.66]
[1752463667778,4.74965881,166.16,166.15,31.38]
[1752463670001,5.43965881,166.16,166.15,31.38]
[1752463670710,0.75,166.16,166.15,31.38]
[1752463670882,4.74965881,166.16,166.15,31.38]
[1752463672688,0.06,166.16,166.15,31.38]
[1752463672891,4.74965881,166.16,166.15,31.38]
[1752463673294,5.43965881,166.16,166.15,31.38]
[1752463675890,0.75,166.16,166.15,31.38]
[1752463676107,4.74965881,166.16,166.15,31.38]
[1752463676433,5.43965881,166.16,166.15,31.38]
[1752463677602,4.74965881,166.16,166.15,31.38]
[1752463677792,5.43965881,166.16,166.15,31.38]
[1752463678609,10.12931762,166.16,166.15,31.38]
[1752463679292,5.43965881,166.16,166.15,31.38]
[1752463679805,10.12931762,166.16,166.15,31.38]
[1752463680723,4.74965881,166.16,166.15,31.38]
[1752463681601,0.06,166.16,166.15,31.38]
[1752463681793,4.74965881,166.16,166.15,31.38]
[1752463683091,0.06,166.16,166.15,32.04]
[1752463683911,0.06,166.16,166.15,48.82468397]
[1752463684212,0.06,166.16,166.15,48.96684554]
[1752463684426,0.06,166.16,166.15,53.65650435]
[1752463687958,0.06,166.16,166.15,71.68650435]
[1752463689117,0.06,166.16,166.15,53.65650435]
[1752463689614,0.06,166.16,166.15,48.96684554]
[1752463689821,0.06,166.16,166.15,48.78468397]
[1752463690726,0.06,166.16,166.15,48.92684554]
[1752463691649,0.06,166.16,166.15,53.61650435]
[1752463692147,0.06,166.16,166.15,48.92684554]
[1752463692351,0.06,166.16,166.15,53.61650435]
[1752463692737,0.06,166.16,166.15,48.92684554]
[1752463693047,0.06,166.16,166.15,53.61650435]
[1752463694339,0.06,166.16,166.15,22.27650435]
[1752463694547,0.06,166.16,166.15,53.61650435]
[1752463695442,0.06,166.16,166.15,161.24650435]
[1752463700157,0.06,166.16,166.15,143.21650435]
[1752463700538,0.06,166.16,166.15,161.24650435]
[1752463702045,0.06,166.16,166.15,156.55684554]
[1752463702359,0.06,166.16,166.15,143.21650435]
[1752463702939,0.06,166.16,166.15,125.21684554]
[1752463703157,0.06,166.16,166.15,143.19650435]
[1752463703650,0.06,166.16,166.15,111.87650435]
[1752463703845,4.74965881,166.16,166.15,31.32]
[1752463704162,0.06,166.16,166.15,48.10468397]
[1752463704538,5.46965881,166.16,166.15,31.32]
[1752463705759,0.78,166.16,166.15,31.32]
[1752463705934,5.46965881,166.16,166.15,31.32]
[1752463706365,0.06,166.16,166.15,48.10468397]
[1752463707162,0.06,166.16,166.15,53.59650435]
[1752463708365,0.06,166.16,166.15,48.24684554]
[1752463709274,0.06,166.16,166.15,143.19650435]
[1752463710061,0.06,166.16,166.15,137.82684554]
[1752463711664,0.06,166.16,166.15,143.17650435]
[1752463712561,0.06,166.16,166.15,138.48684554]
[1752463712763,0.06,166.16,166.15,143.17650435]
[1752463715370,0.06,166.23,166.19,16.78468397]
[1752463715577,0.06,166.23,166.22,0.14216157]
[1752463715743,0.06,166.23,166.22,31.44216157]
[1752463716568,0.06,166.23,166.22,48.22684554]
[1752463716748,0.06,166.23,166.22,53.57650435]
[1752463717146,0.06,166.23,166.22,137.82684554]
[1752463717438,0.06,166.23,166.22,142.51650435]
[1752463718070,0.06,166.23,166.22,145.82023901]
[1752463718442,0.06,166.23,166.22,143.17650435]
[1752463718640,10.0,166.38,166.22,143.17650435]
[1752463718641,5.40965881,166.29,166.24,0.14216157]
[1752463718871,5.40965881,166.29,166.24,56.22022114]
[1752463719075,0.72,166.29,166.24,56.22022114]
[1752463719368,5.40965881,166.28,166.24,50.87056233]
[1752463719563,0.72,166.28,166.24,50.87056233]
[1752463719764,5.40965881,166.28,166.24,51.53056233]
[1752463720168,4.68965881,166.27,166.24,50.87056233]
[1752463720470,0.72,166.28,166.24,50.87056233]
[1752463720661,5.40965881,166.28,166.24,50.87056233]
[1752463720843,5.40965881,166.28,166.24,55.56022114]
[1752463721171,10.1,166.4,166.24,55.56022114]
[1752463721172,0.72,166.35,166.26,0.14216157]
[1752463721378,4.68965881,166.33,166.3,16.78468397]
[1752463721545,0.72,166.32,166.31,74.00468397]
[1752463721742,0.72,166.32,166.31,76.6421082]
[1752463722058,0.72,166.32,166.31,74.00468397]
[1752463722369,0.72,166.32,166.31,76.63970127]
[1752463722671,0.72,166.32,166.31,44.12650127]
[1752463723047,0.72,166.32,166.31,28.5750173]
[1752463723247,5.40965881,166.32,166.31,25.94]
[1752463723450,5.40965881,166.34,166.31,25.94]
[1752463723750,5.40965881,166.34,166.32,31.28]
[1752463723948,0.72,166.33,166.32,31.28]
[1752463724964,5.40965881,166.35,166.32,31.28]
[1752463725271,0.72,166.34,166.32,31.28]
[1752463726171,4.78965881,166.4,166.33,21.47434278]
[1752463726172,0.72,166.36,166.33,21.47434278]
[1752463726351,0.72,166.35,166.34,48.06468397]
[1752463728169,0.72,166.35,166.32,0.14216157]
[1752463728377,0.72,166.34,166.33,48.04468397]
[1752463730667,0.1,166.4,166.33,48.04468397]
[1752463730986,0.72,166.36,166.33,48.04468397]
[1752463731171,0.72,166.35,166.33,48.04468397]
[1752463733665,0.72,166.34,166.33,48.04468397]
[1752463734265,0.78,166.34,166.33,31.26]
[1752463734672,5.46965881,166.34,166.33,31.26]
[1752463734880,5.46965881,166.34,166.31,25.97]
[1752463735087,5.46965881,166.34,166.32,31.26]
[1752463735088,0.72,166.33,166.32,31.26]
[1752463735252,5.40965881,166.33,166.32,31.26]
[1752463736961,4.74965881,166.34,166.32,31.26]
[1752463737263,0.06,166.34,166.33,16.78468397]
[1752463737465,0.78,166.34,166.33,16.78468397]
[1752463737980,0.78,166.34,166.32,31.26]
[1752463737981,5.46965881,166.34,166.32,31.26]
[1752463738192,5.40965881,166.33,166.32,31.26]
[1752463739382,0.72,166.33,166.32,31.26]
[1752463739985,0.06,166.34,166.32,31.26]
[1752463740166,0.72,166.33,166.32,31.26]
[1752463741580,0.06,166.34,166.33,16.78468397]
[1752463741785,0.66,166.33,166.32,48.04468397]
[1752463741990,5.34965881,166.33,166.32,31.26]
[1752463742365,0.66,166.33,166.32,31.26]
[1752463742583,5.34965881,166.33,166.31,25.97]
[1752463742794,11.55181762,166.32,166.26,25.92]
[1752463742970,0.66,166.31,166.27,31.24]
[1752463743295,4.68965881,166.28,166.27,31.24]
[1752463743589,5.34965881,166.28,166.27,31.24]
[1752463743886,7.2128,166.28,166.27,31.24]
[1752463744058,11.90245881,166.28,166.27,31.24]
[1752463749176,11.90245881,166.28,166.26,25.92]
[1752463749390,11.90245881,166.28,166.24,0.03]
[1752463749391,1.5063,166.26,166.24,0.03]
[1752463749588,27.5063,166.26,166.25,31.26]
[1752463749792,2.1663,166.26,166.25,31.26]
[1752463750292,6.85595881,166.26,166.25,31.26]
[1752463750492,0.66,166.26,166.25,31.26]
[1752463750869,5.34965881,166.26,166.25,31.26]
[1752463751401,0.66,166.26,166.25,31.26]
[1752463751697,5.34965881,166.26,166.25,31.26]
[1752463753196,0.66,166.26,166.25,31.26]
[1752463753405,5.34965881,166.26,166.24,0.03]
[1752463753618,4.68965881,166.25,166.24,0.03]
[1752463753909,5.34965881,166.25,166.24,31.29]
[1752463754104,6.87955881,166.25,166.24,31.29]
[1752463754475,11.56921762,166.25,166.24,31.29]
[1752463755176,6.87955881,166.25,166.24,31.29]
[1752463757279,11.56921762,166.25,166.24,31.29]
[1752463758295,11.56921762,166.25,166.21,25.92]
[1752463758296,6.5908,166.24,166.21,25.92]
[1752463758471,4.68965881,166.22,166.21,25.92]
[1752463758671,5.34965881,166.22,166.21,57.18]
[1752463758894,10.15925155,166.22,166.17,0.03]
[1752463759077,4.68965881,166.18,166.17,0.03]
[1752463759273,11.01021762,166.18,166.17,0.03]
[1752463759471,11.67021762,166.18,166.17,0.03]
[1752463759878,6.98055881,166.18,166.17,0.03]
[1752463760080,6.98055881,166.18,166.17,31.29]
[1752463760293,1.3486,166.16,166.13,25.94]
[1752463760601,4.68965881,166.14,166.13,25.94]
[1752463760988,1.3486,166.16,166.14,16.78468397]
[1752463761300,1.3486,166.16,166.15,0.14216157]
[1752463761504,1.3486,166.16,166.15,48.87684554]
[1752463762379,1.3486,166.16,166.15,53.56650435]
[1752463762769,1.3486,166.16,166.15,48.87684554]
[1752463763396,1.3486,166.16,166.15,53.56650435]
[1752463764885,1.3486,166.16,166.15,143.16650435]
[1752463765292,1.3486,166.16,166.15,174.31163818]
[1752463765602,1.3486,166.16,166.15,84.71163818]
[1752463765987,1.3486,166.16,166.15,110.71163818]
[1752463766193,1.3486,166.16,166.15,118.31308517]
[1752463766489,4.68965881,166.27,166.19,16.78468397]
[1752463766686,0.66,166.28,166.18,26.0]
[1752463766687,0.66,166.28,166.24,16.78468397]
[1752463767010,5.34965881,166.28,166.25,31.26]
[1752463767793,4.68965881,166.27,166.25,31.26]
[1752463768105,4.68965881,166.28,166.25,31.26]
[1752463768982,5.34965881,166.28,166.25,31.26]
[1752463769317,4.68965881,166.29,166.26,16.78468397]
[1752463769611,4.68965881,166.3,166.27,31.26]
[1752463769797,5.34965881,166.29,166.27,31.26]
[1752463770312,4.68965881,166.29,166.27,31.26]
[1752463770483,4.68965881,166.29,166.28,25.94]
[1752463770684,8.1318,166.31,166.28,25.94]
[1752463770889,4.68965881,166.29,166.28,25.94]
[1752463771089,5.35965881,166.29,166.28,57.18]
[1752463771913,0.67,166.29,166.28,57.18]
[1752463772087,5.35965881,166.29,166.28,57.18]
[1752463773591,0.67,166.29,166.28,57.18]
[1752463773915,5.35965881,166.29,166.28,57.18]
[1752463778900,0.67,166.29,166.28,57.18]
[1752463779096,5.35965881,166.29,166.28,25.94]
[1752463779294,5.35965881,166.29,166.28,57.18]
[1752463779802,5.35965881,166.29,166.19,90.29]
[1752463780119,0.67,166.28,166.21,25.94]
[1752463780289,4.68965881,166.22,166.21,25.94]
[1752463780485,5.35965881,166.22,166.21,25.94]
[1752463781191,5.35965881,166.22,166.21,57.18]
[1752463785105,0.67,166.22,166.21,57.18]
[1752463785307,5.35965881,166.22,166.21,25.94]
[1752463785502,5.35965881,166.22,166.21,57.18]
[1752463785713,5.35965881,166.22,166.16,25.97]
[1752463785922,4.68965881,166.17,166.16,25.97]
[1752463786118,5.35965881,166.17,166.16,25.97]
[1752463786703,10.04931762,166.17,166.16,25.97]
[1752463787014,10.04931762,166.17,166.16,57.21]
[1752463787516,14.79801056,166.17,166.16,57.21]
[1752463789096,5.35965881,166.17,166.16,57.21]
[1752463793500,10.04931762,166.17,166.16,57.21]
[1752463793714,4.68965881,166.17,166.16,57.21]
[1752463797926,4.68965881,166.17,166.16,25.97]
[1752463797927,10.04931762,166.17,166.16,25.97]
[1752463798125,10.04931762,166.17,166.16,57.21]
[1752463799205,4.89103829,166.2,166.16,57.21]
[1752463799410,4.68965881,166.17,166.16,57.21]
[1752463799922,5.35965881,166.17,166.16,57.21]
[1752463800304,0.67,166.17,166.16,57.21]
[1752463800509,4.68965881,166.17,166.16,57.21]
[1752463802449,10.09931762,166.17,166.09,0.68]
[1752463802730,5.40965881,166.16,166.1,73.96468397]
[1752463803026,5.40965881,166.16,166.1,74.64468397]
[1752463803430,5.40965881,166.16,166.11,0.68]
[1752463803735,0.72,166.15,166.12,31.24]
[1752463803913,0.72,166.18,166.13,0.68]
[1752463804229,4.68965881,166.16,166.14,31.24]
[1752463804431,0.72,166.17,166.14,31.24]
[1752463805506,4.68965881,166.15,166.14,31.24]
[1752463806032,4.68965881,166.16,166.14,48.70468397]
[1752463806202,4.68965881,166.16,166.15,17.46468397]
[1752463807530,7.7072,166.22,166.15,17.46468397]
[1752463807713,4.68965881,166.18,166.17,16.78468397]
[1752463807915,12.6210752,166.22,166.17,48.00468397]
[1752463808230,4.68965881,166.18,166.17,74.62468397]
[1752463808729,4.68965881,166.18,166.17,57.16]
[1752463809228,0.72,166.2,166.17,57.16]
[1752463809419,4.68965881,166.18,166.17,57.16]
[1752463809751,4.68965881,166.2,166.18,16.78468397]
[1752463809907,0.06,166.22,166.19,31.22]
[1752463810107,4.68965881,166.2,166.19,31.22]
[1752463810532,0.78,166.22,166.19,31.22]
[1752463810835,4.68965881,166.2,166.19,31.22]
[1752463811005,0.78,166.22,166.19,31.22]
[1752463811213,4.68965881,166.2,166.19,31.22]
[1752463811717,4.74965881,166.22,166.2,16.78468397]
[1752463811913,4.74965881,166.22,166.21,31.9]
[1752463812609,0.06,166.22,166.21,48.82684554]
[1752463815440,0.06,166.22,166.21,53.51650435]
[1752463815735,0.06,166.22,166.21,48.82684554]
[1752463816318,0.06,166.22,166.21,53.51650435]
[1752463817720,0.06,166.22,166.21,48.82684554]
[1752463819248,0.06,166.22,166.21,53.51650435]
[1752463820010,0.06,166.22,166.21,48.82684554]
[1752463820216,0.06,166.22,166.21,53.51650435]
[1752463820435,0.06,166.22,166.21,55.16910435]
[1752463820649,0.06,166.22,166.21,73.19910435]
[1752463820822,0.06,166.22,166.21,81.62457937]
[1752463821740,0.06,166.29,166.25,16.78468397]
[1752463821938,0.06,166.29,166.28,16.78468397]
[1752463822138,0.06,166.29,166.28,48.14684554]
[1752463822331,0.06,166.29,166.28,17.60684554]
[1752463822529,0.06,166.29,166.28,49.18684554]
[1752463822941,0.06,166.29,166.28,49.48684554]
[1752463823131,0.06,166.29,166.28,49.34468397]
[1752463823447,0.78,166.29,166.28,32.56]
[1752463823829,5.46965881,166.29,166.28,32.56]
[1752463824345,7.10745881,166.29,166.19,0.68]
[1752463824642,4.68965881,166.2,166.19,0.68]
[1752463824836,4.68965881,166.2,166.16,0.03]
[1752463825039,0.78,166.22,166.16,0.03]
[1752463825040,4.68965881,166.18,166.16,0.03]
[1752463825240,0.78,166.22,166.16,0.03]
[1752463825421,0.72,166.21,166.18,33.04]
[1752463825625,4.68965881,166.19,166.18,49.82468397]
[1752463825837,5.40965881,166.19,166.18,33.04]
[1752463826043,0.72,166.19,166.18,33.04]
[1752463826573,5.40965881,166.19,166.18,33.04]
[1752463828256,6.92975881,166.19,166.18,33.04]
[1752463828732,4.68965881,166.19,166.18,33.04]
[1752463829752,0.06,166.22,166.19,16.78468397]
[1752463829946,4.68965881,166.2,166.19,16.78468397]
[1752463830147,4.68965881,166.2,166.19,49.88468397]
[1752463831126,0.78,166.22,166.19,49.88468397]
[1752463831449,4.68965881,166.2,166.19,49.88468397]
[1752463831947,0.78,166.22,166.19,49.88468397]
[1752463832144,4.68965881,166.21,166.19,49.88468397]
[1752463832347,4.68965881,166.2,166.19,49.88468397]
[1752463832746,0.06,166.22,166.19,49.88468397]
[1752463832948,4.68965881,166.2,166.19,49.88468397]
[1752463833550,4.68965881,166.2,166.19,33.1]
[1752463833859,0.72,166.22,166.19,33.1]
[1752463834149,0.72,166.22,166.19,49.88468397]
[1752463834150,4.68965881,166.21,166.19,49.88468397]
[1752463834937,0.06,166.22,166.2,16.78468397]
[1752463835141,0.06,166.22,166.21,33.14]
[1752463835459,4.74965881,166.22,166.21,33.14]
[1752463836454,0.06,166.22,166.21,50.61468397]
[1752463837255,0.06,166.22,166.21,49.92468397]
[1752463837932,0.06,166.22,166.21,50.61468397]
[1752463838138,0.06,166.22,166.21,50.75684554]
[1752463839354,0.06,166.22,166.21,55.44650435]
[1752463840160,0.06,166.22,166.21,56.04815286]
[1752463840734,0.06,166.22,166.21,63.64125286]
[1752463840934,0.06,166.33,166.24,16.78468397]
[1752463841232,0.06,166.33,166.32,16.78468397]
[1752463841431,0.06,166.33,166.32,54.69650435]
[1752463841651,0.06,166.33,166.32,55.38650435]
[1752463843056,0.06,166.33,166.32,58.48819344]